bitfinex/quotes_ETHUSD_20250517
["timestamp","ask_amount","ask_price","bid_price","bid_amount"]
[1747440000784,0.7791,2537.3,2533.4,3.94]
[1747440001078,10.08,2537.2,2533.9,0.37881719]
[1747440001239,0.7791,2537.1,2533.9,0.37881719]
[1747440001753,0.55,2537.0,2533.9,0.37881719]
[1747440002977,0.55,2537.0,2534.0,0.1]
[1747440003182,0.55,2537.0,2534.1,16.67881719]
[1747440003349,0.55,2537.0,2534.2,1.67788172]
[1747440003548,0.55,2537.0,2534.3,0.37881719]
[1747440003949,0.55,2537.0,2534.4,0.8196]
[1747440004149,0.7791,2536.9,2534.5,0.8196]
[1747440005085,1.07072356,2536.9,2534.7,0.8196]
[1747440005286,0.55,2536.7,2534.9,0.7864]
[1747440005492,0.59111483,2536.8,2535.8,0.7864]
[1747440005689,0.7791,2537.4,2536.0,0.7864]
[1747440005862,3.94092568,2537.5,2536.9,3.94172466]
[1747440006188,3.94092568,2537.5,2535.9,22.28798541]
[1747440006189,0.7791,2537.7,2536.5,0.7864]
[1747440006392,0.7791,2536.5,2535.6,0.7864]
[1747440006689,0.7791,2536.5,2534.3,3.94586276]
[1747440006690,0.7791,2535.9,2534.3,3.94586276]
[1747440006987,3.94447865,2535.2,2535.0,0.7864]
[1747440007150,3.94411074,2535.5,2535.0,0.7864]
[1747440007355,3.94389629,2535.6,2535.0,0.7864]
[1747440007561,3.94402647,2535.5,2535.0,0.7864]
[1747440008513,0.5,2535.3,2535.0,9.6904]
[1747440008797,3.9447235,2535.1,2534.8,8.904]
[1747440009008,3.9449123,2535.0,2534.7,0.7864]
[1747440009156,9.386,2535.3,2534.7,0.7864]
[1747440009360,3.94504554,2534.9,2534.7,0.7864]
[1747440009557,3.94555139,2534.5,2534.4,0.7864]
[1747440009801,0.7791,2534.9,2534.4,0.7864]
[1747440009996,3.94508442,2534.8,2534.4,0.7864]
[1747440010159,3.94554248,2534.6,2534.4,0.7864]
[1747440010365,8.872,2535.0,2534.4,0.7864]
[1747440010599,3.94549105,2534.6,2534.4,0.7864]
[1747440010779,4.49492879,2534.9,2533.9,0.7811]
[1747440010984,3.94574802,2534.4,2533.9,0.7811]
[1747440011198,3.9460287,2534.2,2533.9,0.7811]
[1747440011376,3.9460287,2534.2,2533.9,0.6811]
[1747440011776,3.94590638,2534.3,2533.9,0.6811]
[1747440012003,3.94602929,2534.2,2533.9,0.6811]
[1747440012292,3.94645865,2534.0,2533.5,25.929]
[1747440012494,3.94638815,2534.0,2533.5,25.929]
[1747440012694,4.34063917,2534.2,2533.5,17.024]
[1747440012907,3.94635949,2534.0,2533.5,17.024]
[1747440013069,4.34063917,2534.2,2533.5,17.024]
[1747440013070,3.94651906,2533.9,2533.5,17.024]
[1747440013264,0.55,2534.3,2533.5,18.01860828]
[1747440013580,3.94629426,2534.1,2533.5,18.01860828]
[1747440013774,0.55,2534.3,2533.5,17.024]
[1747440014100,3.94644219,2534.0,2533.5,17.024]
[1747440014485,3.94650613,2533.9,2533.5,17.8051]
[1747440014799,3.94639255,2534.0,2533.5,17.8051]
[1747440015902,0.8099,2534.1,2533.5,17.8051]
[1747440016106,3.94660616,2533.9,2533.5,17.8051]
[1747440016600,0.8099,2534.1,2533.5,17.8051]
[1747440016601,3.94664354,2533.8,2533.5,17.8051]
[1747440016804,3.94682287,2533.7,2533.2,0.8119]
[1747440017101,13.27017639,2533.9,2533.2,0.8119]
[1747440017102,3.94701297,2533.6,2533.2,0.8119]
[1747440017276,3.94643348,2534.0,2533.5,3.94709982]
[1747440017604,12.79043348,2534.0,2533.4,3.94721172]
[1747440018506,0.8686005,2534.0,2533.1,8.909]
[1747440018731,3.94618242,2534.1,2533.5,3.94702092]
[1747440019703,3.94618242,2534.1,2533.6,8.911]
[1747440019704,3.94628555,2534.1,2533.6,8.911]
[1747440020165,3.94628555,2534.1,2533.5,3.9470966]
[1747440020166,0.55,2533.9,2533.1,9.7229]
[1747440020371,3.94675652,2533.8,2533.1,9.7229]
[1747440020572,3.94675652,2533.8,2533.2,3.9474738]
[1747440020794,0.92530205,2533.8,2533.1,4.75951934]
[1747440020994,4.49657535,2533.9,2533.3,3.94729197]
[1747440021986,0.8099,2534.0,2533.2,8.911]
[1747440022220,4.75633415,2534.0,2533.4,3.94713624]
[1747440023309,2.367,2533.9,2533.4,3.94713624]
[1747440023480,6.31349298,2533.9,2533.4,3.94713624]
[1747440024084,6.31349298,2533.9,2533.1,0.8119]
[1747440024085,3.94665951,2533.8,2533.1,0.8119]
[1747440024274,6.31374675,2533.8,2533.1,1.28786515]
[1747440024606,2.367,2533.8,2533.3,3.94730126]
[1747440024918,7.12324628,2534.0,2533.2,8.912]
[1747440025111,15.91324628,2534.0,2533.4,3.94713006]
[1747440025273,0.8135,2534.2,2533.6,3.94681932]
[1747440025475,12.73196575,2534.3,2533.7,3.94676273]
[1747440025987,2.367,2534.2,2533.7,3.94676273]
[1747440026807,6.31302755,2534.2,2533.7,3.94676273]
[1747440027229,2.367,2534.3,2533.6,0.86576281]
[1747440027379,2.367,2534.3,2533.9,3.94634706]
[1747440027713,2.367,2534.3,2533.8,3.9466414]
[1747440027714,2.367,2534.3,2533.8,3.94658341]
[1747440027909,2.367,2534.6,2534.2,3.94596652]
[1747440028114,2.367,2534.6,2534.0,3.94617477]
[1747440028313,0.8135,2535.0,2534.2,0.7637]
[1747440028520,12.70351181,2535.2,2534.6,3.9453035]
[1747440028898,15.07048344,2535.2,2534.4,3.94565762]
[1747440029225,3.94471394,2535.1,2534.4,3.94565762]
[1747440029531,0.5,2535.0,2534.4,3.94565762]
[1747440030023,0.5,2535.0,2534.3,12.85779701]
[1747440030184,4.44490873,2535.0,2534.4,3.94569152]
[1747440030387,0.5,2535.0,2534.3,3.94582749]
[1747440030584,3.94517031,2534.8,2534.2,4.70970611]
[1747440030790,0.5,2535.0,2534.9,3.94492879]
[1747440031046,0.7605,2535.7,2534.9,13.64582879]
[1747440031047,3.1275,2535.7,2534.9,13.64582879]
[1747440031192,3.94385803,2535.6,2535.0,3.94466818]
[1747440032030,3.94402076,2535.5,2534.9,4.73375727]
[1747440032230,3.94402076,2535.5,2535.0,8.912]
[1747440033231,3.94425589,2535.4,2535.0,8.911]
[1747440033596,4.23399282,2536.1,2535.0,8.911]
[1747440033810,0.55,2536.0,2535.0,8.911]
[1747440034197,3.94392419,2535.6,2535.1,3.9446175]
[1747440034508,3.94374068,2535.7,2535.1,3.9446175]
[1747440034864,3.94374068,2535.7,2535.1,12.8556175]
[1747440035066,0.5,2535.9,2535.2,2.07966175]
[1747440035228,3.94334464,2536.0,2535.3,3.94430639]
[1747440035424,3.94334464,2536.0,2535.2,6.02410964]
[1747440035425,0.759,2536.2,2535.4,8.911]
[1747440035629,3.94364114,2535.8,2535.4,8.911]
[1747440036052,3.94364114,2535.8,2535.2,4.73854991]
[1747440036261,3.94364114,2535.8,2535.3,8.911]
[1747440036262,3.94373475,2535.7,2535.3,8.911]
[1747440036451,3.94358981,2535.8,2535.3,8.911]
[1747440036766,3.94377959,2535.7,2535.3,8.911]
[1747440036967,0.788719,2535.7,2535.3,8.911]
[1747440037262,3.94325341,2536.0,2535.4,3.94414982]
[1747440037463,12.72025341,2536.0,2535.4,3.94414982]
[1747440037651,11.145,2536.5,2535.3,12.85529779]
[1747440037652,3.94273339,2536.4,2535.5,0.7886]
[1747440037858,3.94331337,2536.0,2535.6,8.778]
[1747440038226,3.94329123,2536.0,2535.6,8.778]
[1747440038566,3.94355706,2535.8,2535.5,9.5666]
[1747440039050,3.94370061,2535.7,2535.5,9.5666]
[1747440039251,3.94386481,2535.6,2535.2,0.7886]
[1747440039456,3.94386481,2535.6,2535.2,9.5666]
[1747440039663,3.94386481,2535.6,2535.2,0.7886]
[1747440039970,4.44369635,2535.7,2535.2,9.5656]
[1747440040264,5.76406599,2535.7,2535.2,9.5656]
[1747440040964,1.82036964,2535.7,2535.2,0.7886]
[1747440041163,3.94423343,2535.4,2535.2,9.5656]
[1747440041365,3.94423343,2535.4,2535.1,8.777]
[1747440042670,3.94403758,2535.5,2535.1,8.777]
[1747440043975,3.94416424,2535.4,2534.9,4.73352701]
[1747440044275,3.94416424,2535.4,2535.0,8.777]
[1747440044457,3.94440832,2535.3,2534.9,0.7886]
[1747440044635,3.94440832,2535.3,2535.0,8.777]
[1747440044835,3.94458623,2535.2,2534.9,0.7886]
[1747440045031,6.31083972,2535.6,2534.9,9.5656]
[1747440045257,3.94459583,2535.2,2534.9,9.5656]
[1747440046086,3.94459583,2535.2,2534.9,0.7886]
[1747440046273,3.94480153,2535.0,2534.7,17.8351]
[1747440046453,3.94452311,2535.2,2534.8,8.777]
[1747440046840,3.94438408,2535.3,2534.8,8.777]
[1747440047464,3.94438408,2535.3,2534.7,21.78029313]
[1747440047676,3.94438408,2535.3,2534.8,8.777]
[1747440049246,3.94438408,2535.3,2534.8,12.72208313]
[1747440049645,3.94438408,2535.3,2534.8,8.777]
[1747440050201,3.94438408,2535.3,2534.8,12.72207319]
[1747440050505,3.94438408,2535.3,2534.8,8.777]
[1747440051108,3.94446289,2535.2,2534.8,8.777]
[1747440051463,4.44446289,2535.2,2534.8,8.777]
[1747440051809,0.5,2535.2,2534.8,12.72207955]
[1747440051980,3.94437695,2535.3,2534.8,12.72207955]
[1747440052912,3.94437695,2535.3,2534.8,8.777]
[1747440053702,3.94449975,2535.2,2534.8,8.777]
[1747440054065,3.94449975,2535.2,2534.7,21.7802922]
[1747440054602,3.94470387,2535.1,2534.8,8.777]
[1747440054805,2.917,2534.9,2533.3,0.8047]
[1747440055011,2.367,2534.5,2533.7,0.8047]
[1747440055194,6.31283547,2534.4,2533.7,0.8047]
[1747440055401,11.8025,2534.3,2533.7,0.8047]
[1747440055721,12.50569639,2534.3,2533.7,0.8047]
[1747440056073,3.94613978,2534.2,2533.7,0.8047]
[1747440056272,12.50569639,2534.3,2533.7,0.8047]
[1747440056473,3.94621086,2534.1,2533.7,0.8047]
[1747440056776,2.367,2533.9,2533.4,0.8322]
[1747440057084,12.80744786,2533.8,2533.1,8.8322]
[1747440057284,3.94695295,2533.6,2533.1,8.8322]
[1747440057501,3.94679717,2533.7,2533.1,8.8322]
[1747440057698,3.94705051,2533.6,2533.1,8.8322]
[1747440058201,8.8607,2533.8,2533.2,3.94747575]
[1747440058718,0.55,2533.4,2532.0,4.34032951]
[1747440058998,0.55,2533.4,2532.0,5.17252951]
[1747440058999,0.55,2533.2,2532.0,5.17252951]
[1747440059198,3.94817487,2532.9,2532.2,3.94910355]
[1747440059403,3.9482661,2532.8,2532.2,5.62217545]
[1747440060103,3.94808937,2532.9,2532.3,8.778]
[1747440060282,3.94790958,2533.0,2532.3,3.94896114]
[1747440060481,0.5,2532.8,2532.3,12.72696114]
[1747440060678,0.5,2532.8,2531.8,3.94967097]
[1747440060679,1.11536114,2533.0,2531.5,0.8211]
[1747440060877,3.94815185,2532.9,2532.2,0.8211]
[1747440061092,0.8212,2533.0,2532.2,0.8211]
[1747440061497,3.94849825,2532.7,2532.2,0.8211]
[1747440061693,3.94763478,2533.2,2532.2,0.8211]
[1747440061694,0.8212,2533.6,2532.3,0.8211]
[1747440061898,3.94770736,2533.2,2532.5,0.8211]
[1747440062099,3.94770736,2533.2,2532.6,11.36581]
[1747440062298,0.8212,2533.6,2531.4,0.29984142]
[1747440062299,3.94891835,2532.4,2531.4,0.8211]
[1747440062605,8.0,2532.9,2531.5,8.0]
[1747440062606,3.94918287,2532.2,2531.5,8.0]
[1747440062805,0.8212,2532.5,2531.6,8.78]
[1747440063018,3.949403,2532.1,2531.6,8.78]
[1747440063316,3.94962243,2531.9,2531.7,8.78]
[1747440063485,3.94979206,2531.8,2531.4,0.8211]
[1747440063810,3.9499525,2531.7,2531.4,0.8211]
[1747440064210,3.94981363,2531.8,2531.4,0.8211]
[1747440064573,3.94981363,2531.8,2530.0,26.0]
[1747440064574,0.55,2531.1,2530.0,26.0]
[1747440064772,3.95101884,2531.0,2530.1,3.95229314]
[1747440065007,12.80987452,2531.1,2530.0,29.95255597]
[1747440065211,3.95126512,2530.9,2530.1,3.9522956]
[1747440065588,4.45126512,2530.9,2530.2,3.95222371]
[1747440065788,4.45126512,2530.9,2530.2,5.66461633]
[1747440066105,0.5,2530.9,2530.8,3.95131974]
[1747440066309,0.5,2530.9,2530.7,3.95141872]
[1747440066509,0.78992766,2531.8,2531.2,3.95067128]
[1747440066680,3.94947918,2532.0,2531.3,4.7694309]
[1747440066876,3.94947918,2532.0,2531.3,4.76947927]
[1747440067077,3.94930953,2532.1,2531.4,3.95036141]
[1747440067313,3.94949073,2532.0,2531.3,4.76947772]
[1747440067509,3.94949073,2532.0,2531.4,3.95034706]
[1747440067708,8.853,2532.1,2531.5,3.9501485]
[1747440067911,14.14088616,2532.1,2531.5,3.95012538]
[1747440068111,1.33857977,2532.1,2531.6,3.95005781]
[1747440068619,1.33857977,2532.1,2531.5,3.95017148]
[1747440069018,0.7767,2532.7,2531.6,8.853]
[1747440069197,3.94882137,2532.5,2531.8,3.94963284]
[1747440069397,3.94882137,2532.5,2531.7,3.94989934]
[1747440069982,3.94882137,2532.5,2531.9,3.94949641]
[1747440070186,8.833,2532.6,2531.9,3.94949641]
[1747440070388,1.95479913,2533.3,2532.0,0.7884]
[1747440070610,1.95479913,2533.3,2532.7,0.7884]
[1747440070788,1.95479913,2533.3,2533.2,3.94757618]
[1747440071206,1.95479913,2533.3,2532.9,3.94791365]
[1747440071488,1.95479913,2533.3,2532.9,12.80201324]
[1747440071709,1.95479913,2533.3,2533.0,3.94788787]
[1747440072319,1.95479913,2533.3,2533.2,3.94757618]
[1747440072818,3.94641692,2534.0,2533.0,9.67500553]
[1747440073133,13.54453459,2534.1,2533.4,3.94712726]
[1747440073340,13.54453459,2534.1,2533.5,3.94705349]
[1747440073544,8.834,2534.2,2533.4,9.6414]
[1747440073704,8.836,2534.5,2533.8,3.94663966]
[1747440074039,3.94582471,2534.4,2533.8,3.94663418]
[1747440074341,8.836,2534.5,2533.8,3.94658731]
[1747440074629,12.78160279,2534.5,2533.9,3.9464577]
[1747440074798,8.836,2534.5,2533.7,3.94676197]
[1747440075007,12.78158991,2534.5,2533.9,3.94634476]
[1747440075327,3.94558991,2534.5,2533.9,12.79934476]
[1747440075689,9.5703,2534.7,2534.1,3.94607881]
[1747440075934,0.7543,2534.7,2534.2,3.94598251]
[1747440076132,11.94498702,2534.9,2534.2,3.94598251]
[1747440076349,11.94498702,2534.9,2534.2,0.78923004]
[1747440076350,3.94508442,2534.8,2534.2,0.78923004]
[1747440076642,0.7561,2533.6,2531.9,0.7552]
[1747440076790,3.94768042,2533.2,2532.4,3.94878367]
[1747440076994,9.512,2533.5,2532.4,12.80078367]
[1747440077226,3.94776342,2533.1,2532.5,1.28007837]
[1747440077397,3.94776342,2533.1,2532.5,8.852]
[1747440077594,0.7561,2533.6,2532.7,3.9483555]
[1747440077794,3.94646293,2534.0,2533.2,3.94748429]
[1747440078017,0.55,2534.2,2533.2,3.94748429]
[1747440078219,0.55,2534.2,2533.0,3.94785819]
[1747440078220,0.55,2534.2,2533.3,8.852]
[1747440078397,3.94667746,2533.8,2533.3,8.852]
[1747440079133,3.94655211,2533.9,2533.3,8.852]
[1747440079826,3.94655211,2533.9,2533.0,12.91688171]
[1747440079827,3.94679717,2533.7,2532.9,3.94798151]
[1747440080027,3.94695295,2533.6,2533.0,8.0]
[1747440080213,9.7261,2533.8,2533.0,11.94786944]
[1747440080423,14.41910412,2534.1,2533.3,3.94727758]
[1747440080731,3.94674487,2533.8,2533.3,8.852]
[1747440081432,4.89811374,2534.1,2533.3,12.7993118]
[1747440081930,3.94650738,2533.9,2533.3,12.7993118]
[1747440082531,3.94650738,2533.9,2533.3,13.5571118]
[1747440082832,3.94650446,2533.9,2533.3,15.42710953]
[1747440084130,0.9519,2534.1,2533.3,11.47975095]
[1747440084433,3.94637877,2534.0,2533.4,3.94726454]
[1747440084960,3.94643157,2534.0,2533.4,3.94722876]
[1747440085231,3.94691651,2533.7,2533.3,11.47975095]
[1747440085436,0.9519,2534.1,2533.4,8.851]
[1747440085612,3.9467031,2533.8,2533.3,0.7578]
[1747440085812,3.9467031,2533.8,2533.3,9.6088]
[1747440086312,3.9467031,2533.8,2533.3,0.7578]
[1747440086508,1.06922,2534.0,2533.3,0.7578]
[1747440086820,3.94701688,2533.6,2533.0,13.62908453]
[1747440087019,5.01566278,2534.0,2533.0,2.58792563]
[1747440087223,3.94666338,2533.8,2533.2,3.9474708]
[1747440088032,3.94666338,2533.8,2533.3,8.851]
[1747440088727,9.96122,2534.0,2533.3,8.851]
[1747440088935,13.90757686,2534.0,2533.3,8.851]
[1747440089134,3.94673085,2533.8,2533.3,8.851]
[1747440089338,3.94741808,2533.4,2533.0,1.75772563]
[1747440089536,3.1249,2532.5,2530.9,3.95116361]
[1747440089735,2.367,2532.3,2530.8,0.8302]
[1747440089955,1.70993458,2532.2,2530.8,0.8302]
[1747440090134,3.95080669,2531.2,2530.8,0.8302]
[1747440090340,3.95076902,2531.2,2530.8,0.8302]
[1747440090549,9.094,2531.3,2530.3,0.7831]
[1747440090706,0.55,2531.2,2530.3,9.6351]
[1747440091039,3.95154421,2530.7,2530.0,34.852]
[1747440091255,0.55,2530.8,2530.0,26.0]
[1747440091458,9.64,2530.8,2530.0,26.0]
[1747440091635,3.95147587,2530.7,2530.0,26.0]
[1747440093056,9.64,2530.8,2530.1,3.95240013]
[1747440093258,11.07575334,2530.8,2530.1,3.95240013]
[1747440093428,10.52575334,2530.8,2530.0,26.0]
[1747440093623,10.52575334,2530.8,2530.2,3.95215187]
[1747440093825,10.52575334,2530.8,2530.0,29.95255597]
[1747440093826,0.7665,2530.9,2530.0,26.0]
[1747440094066,0.7665,2531.8,2530.3,0.7831]
[1747440094261,0.7665,2531.8,2531.1,3.95071241]
[1747440094460,9.081,2531.9,2531.1,3.95071241]
[1747440094756,9.078,2532.1,2531.9,3.94959088]
[1747440094978,9.082,2532.5,2531.9,3.94959088]
[1747440095156,3.94882377,2532.4,2531.8,8.855]
[1747440095363,14.01553589,2532.5,2531.8,12.80463456]
[1747440095764,14.01553589,2532.5,2531.9,3.94959088]
[1747440096137,10.06685,2532.5,2531.6,8.855]
[1747440096337,9.063,2532.6,2531.7,0.8175]
[1747440096646,12.7358451,2533.1,2532.4,3.94869818]
[1747440096844,17.09805437,2533.1,2532.2,8.855]
[1747440097051,17.09805437,2533.1,2532.5,3.94854496]
[1747440097560,9.064,2533.1,2532.6,3.94846897]
[1747440097762,0.754,2534.0,2532.7,9.055]
[1747440097942,0.754,2534.0,2533.3,3.94731216]
[1747440098143,0.754,2534.0,2533.3,13.00231216]
[1747440098342,4.70047159,2534.0,2533.3,9.055]
[1747440098570,3.9468462,2533.7,2533.3,9.055]
[1747440099033,3.9468462,2533.7,2533.0,13.00284774]
[1747440099434,3.9468462,2533.7,2533.1,3.94772858]
[1747440100134,1.95479913,2534.3,2533.0,9.055]
[1747440100333,1.95479913,2534.3,2533.1,8.0]
[1747440100334,9.03,2534.2,2533.1,8.0]
[1747440100667,9.03,2534.2,2533.9,3.94635216]
[1747440100668,9.025,2534.2,2533.9,3.94635216]
[1747440100964,9.029,2534.4,2533.9,3.94638642]
[1747440101331,0.8119,2534.6,2533.9,3.94648565]
[1747440101538,9.022,2534.5,2534.1,3.94604022]
[1747440101733,9.022,2534.5,2534.0,3.94626874]
[1747440101935,3.94533718,2534.7,2534.0,3.94626874]
[1747440102137,9.023,2534.6,2534.0,3.94619524]
[1747440102569,0.8119,2535.1,2533.8,9.053]
[1747440102746,0.8119,2534.7,2533.2,0.30231336]
[1747440102943,0.8119,2533.9,2533.2,0.30231336]
[1747440103159,3.94622863,2534.1,2533.2,3.94744627]
[1747440103473,3.94633761,2534.0,2533.3,12.99936647]
[1747440103971,0.55,2534.4,2533.3,12.99936647]
[1747440104198,4.75749245,2534.5,2533.9,3.94647571]
[1747440104491,3.94559245,2534.5,2533.9,9.052]
[1747440104691,8.0,2534.2,2531.6,4.41054421]
[1747440104992,3.94742036,2533.3,2532.3,0.8065]
[1747440105132,3.9483214,2532.8,2532.3,0.8065]
[1747440105955,3.94800813,2533.0,2532.3,0.8065]
[1747440106159,3.94825245,2532.8,2532.3,0.8065]
[1747440106366,3.94825245,2532.8,2531.8,25.045]
[1747440106367,0.8119,2532.6,2531.6,3.60404421]
[1747440106544,3.94991507,2531.7,2531.6,3.60404421]
[1747440106745,25.0888,2531.7,2530.3,4.34032951]
[1747440107076,8.55,2531.4,2530.3,4.34032951]
[1747440107252,3.95136133,2530.8,2530.3,4.34032951]
[1747440107577,3.95118112,2530.9,2530.3,5.26743413]
[1747440107778,3.95087616,2531.1,2530.3,5.26743413]
[1747440107779,9.406,2531.1,2530.3,5.26743413]
[1747440107985,3.9510075,2531.0,2530.3,5.26743413]
[1747440108164,3.95085425,2531.1,2530.3,5.26743413]
[1747440108476,3.9510301,2531.0,2530.3,9.219527]
[1747440108681,3.9510301,2531.0,2530.4,0.9219527]
[1747440108980,9.387,2531.1,2530.4,0.9219527]
[1747440109181,3.9515393,2530.7,2530.2,9.339]
[1747440109384,0.55,2531.0,2530.0,26.0]
[1747440109548,4.50241294,2530.1,2530.0,26.0]
[1747440109751,13.92741294,2530.1,2530.0,26.0]
[1747440110583,4.50241294,2530.1,2530.0,26.0]
[1747440111084,9.407,2530.1,2530.0,26.0]
[1747440111301,9.459,2531.5,2530.0,28.6]
[1747440111449,9.459,2531.4,2530.3,3.95205561]
[1747440111645,3.95225673,2530.2,2530.1,1.84838342]
[1747440111946,3.95241294,2530.1,2530.0,26.0]
[1747440112147,9.568,2530.1,2530.0,26.0]
[1747440112351,4.50210054,2530.3,2530.0,26.0]
[1747440112683,9.563,2530.1,2530.0,26.0]
[1747440112848,9.555,2530.1,2530.0,26.0]
[1747440113548,8.0,2530.7,2530.0,26.0]
[1747440113549,3.95118863,2530.9,2530.2,3.9522056]
[1747440113883,9.554,2531.0,2530.4,3.95185732]
[1747440114184,13.50502105,2531.0,2530.4,3.95185732]
[1747440114382,15.14073005,2531.0,2530.3,3.9520508]
[1747440114553,1.635709,2531.0,2530.3,3.9520508]
[1747440114887,13.48901458,2531.0,2530.3,3.9520511]
[1747440115075,9.538,2531.0,2530.1,0.8209]
[1747440115269,9.538,2531.0,2530.4,3.951792]
[1747440115675,9.538,2531.0,2530.5,3.95168403]
[1747440115877,9.538,2531.0,2530.5,3.95171032]
[1747440116185,9.538,2531.0,2530.1,8.8209]
[1747440116483,0.20613781,2532.3,2530.4,3.95194435]
[1747440116659,3.94985854,2531.8,2531.1,3.95083672]
[1747440116862,9.507,2531.9,2531.3,3.95042754]
[1747440117064,9.507,2531.9,2530.2,3.87094277]
[1747440117065,3.95180543,2530.5,2529.8,3.95283984]
[1747440117368,3.95219551,2530.3,2529.5,3.95329647]
[1747440118188,3.95219551,2530.3,2529.6,9.701]
[1747440118846,3.95219551,2530.3,2529.5,3.95329647]
[1747440119047,8.55,2529.7,2528.4,11.4333895]
[1747440119254,11.95491398,2528.5,2528.4,11.4333895]
[1747440119453,14.12391398,2528.5,2528.4,11.4333895]
[1747440120016,22.67391398,2528.5,2528.4,11.4333895]
[1747440120302,12.50491398,2528.5,2528.4,11.4333895]
[1747440120500,22.72191398,2528.5,2528.4,11.4333895]
[1747440120856,3.95491398,2528.5,2528.4,11.4333895]
[1747440121056,14.17891398,2528.5,2528.4,11.4333895]
[1747440121261,22.78191398,2528.5,2528.4,11.4333895]
[1747440121667,32.84991398,2528.5,2528.4,11.4333895]
[1747440121897,12.50491398,2528.5,2528.4,11.4333895]
[1747440122101,22.28991398,2528.5,2528.4,11.4333895]
[1747440122406,17.063,2529.4,2528.4,11.4333895]
[1747440122703,10.431,2528.9,2528.4,11.4333895]
[1747440123007,3.95491398,2528.5,2528.4,11.4333895]
[1747440123167,3.95459945,2528.8,2528.4,11.4333895]
[1747440123360,3.95242322,2530.1,2528.4,12.57672845]
[1747440123559,3.95366043,2529.4,2528.5,15.15697633]
[1747440123905,3.95364963,2529.4,2528.5,15.15697633]
[1747440124061,10.463,2529.5,2528.4,11.4333895]
[1747440124262,10.473,2529.4,2528.5,10.382]
[1747440124498,14.43184325,2529.9,2528.7,0.8231]
[1747440124703,3.95306102,2529.7,2528.8,3.95429581]
[1747440124899,3.95316822,2529.7,2528.7,11.2051]
[1747440125165,10.489,2529.7,2528.9,3.95428485]
[1747440125475,3.95315447,2529.7,2528.9,3.95417562]
[1747440125697,3.95315447,2529.7,2528.9,5.86554996]
[1747440125901,10.485,2529.9,2529.0,3.95402391]
[1747440126199,12.47079913,2531.5,2529.1,0.8231]
[1747440126502,3.95139509,2530.8,2529.5,3.95334159]
[1747440126702,3.95139509,2530.8,2529.1,0.8231]
[1747440126703,3.95163202,2530.6,2529.1,0.8231]
[1747440127005,3.95298533,2529.8,2529.1,11.2051]
[1747440127193,10.52,2530.0,2529.1,15.15905975]
[1747440127393,3.95285163,2529.9,2529.1,11.2051]
[1747440127704,3.95217906,2530.3,2529.2,3.95381938]
[1747440127905,3.95212231,2530.3,2529.1,12.72102143]
[1747440128105,3.95212231,2530.3,2529.5,3.95319884]
[1747440128600,3.95212231,2530.3,2529.6,3.95314568]
[1747440128807,14.45012231,2530.3,2529.6,3.95314568]
[1747440129203,3.95212231,2530.3,2529.6,3.95314568]
[1747440129390,3.95212231,2530.3,2529.7,10.382]
[1747440129914,3.95229633,2530.2,2529.7,10.382]
[1747440131317,3.95215894,2530.3,2529.7,10.382]
[1747440131619,14.39397326,2530.4,2529.7,10.382]
[1747440131620,3.95196918,2530.4,2529.7,10.382]
[1747440131806,10.411,2530.9,2529.8,0.7955]
[1747440132011,3.9509849,2531.1,2530.4,3.95182735]
[1747440132314,14.3689849,2531.1,2530.5,3.9517763]
[1747440133079,10.391,2531.2,2530.6,3.95152573]
[1747440133311,10.391,2531.2,2530.6,4.74702573]
[1747440133716,3.9507132,2531.2,2530.6,4.74702573]
[1747440133881,3.95080667,2531.2,2530.6,4.74702573]
[1747440134879,3.95048138,2531.4,2530.7,3.95132671]
[1747440135195,3.95038318,2531.4,2530.6,0.7955]
[1747440135402,10.381,2531.5,2530.7,10.381]
[1747440135583,3.95188905,2530.5,2529.7,5.38655504]
[1747440135793,14.30237974,2530.8,2530.1,3.95225889]
[1747440135983,3.95133938,2530.8,2530.2,3.95225538]
[1747440136183,14.29133938,2530.8,2530.2,3.95225538]
[1747440136385,10.331,2530.9,2530.3,14.33207481]
[1747440136621,3.95040644,2531.4,2530.5,0.8255]
[1747440136824,17.067,2532.1,2530.5,0.8255]
[1747440137024,3.94960306,2531.9,2530.5,17.8895]
[1747440137327,3.94960306,2531.9,2531.1,3.95072016]
[1747440137522,10.329,2531.9,2531.1,10.38]
[1747440137829,3.94971292,2531.9,2531.2,3.95056947]
[1747440138002,4.23795057,2532.6,2531.5,3.95022581]
[1747440138325,3.9491887,2532.2,2531.6,3.95005044]
[1747440138627,0.2060632,2533.4,2531.8,0.8255]
[1747440138823,3.9484986,2532.7,2532.0,3.94935508]
[1747440139123,3.94820516,2532.8,2532.2,3.94910466]
[1747440139322,3.94757618,2533.2,2532.0,3.94931111]
[1747440139482,3.94848701,2532.7,2532.0,3.94931111]
[1747440139888,3.94848701,2532.7,2531.8,4.77522224]
[1747440139889,14.2322924,2532.8,2532.2,3.94912321]
[1747440140108,10.284,2532.8,2532.0,3.94944705]
[1747440140298,3.94862289,2532.6,2531.9,3.94950326]
[1747440141112,10.26,2532.8,2531.8,0.8255]
[1747440141319,3.94908348,2532.3,2532.0,10.378]
[1747440142326,10.236,2532.6,2531.8,0.8255]
[1747440142492,3.94936088,2532.1,2531.8,0.8255]
[1747440143400,3.94960306,2531.9,2531.8,0.8255]
[1747440143610,3.94960315,2531.9,2531.6,27.438]
[1747440143907,3.94892809,2532.4,2531.6,27.438]
[1747440143908,3.94893396,2532.4,2531.6,27.438]
[1747440144108,3.94714969,2533.5,2532.1,0.7524]
[1747440144349,2.367,2533.4,2532.2,10.374]
[1747440144509,3.94878115,2532.5,2532.2,10.374]
[1747440144931,3.94773202,2533.1,2532.2,10.374]
[1747440145102,3.94828967,2532.8,2532.2,14.32308524]
[1747440145297,3.9480129,2533.0,2532.2,10.374]
[1747440145511,14.26659629,2533.2,2532.4,3.94868852]
[1747440145708,0.20599462,2534.3,2532.2,11.48664]
[1747440145940,0.20599462,2534.3,2532.9,0.7593]
[1747440146235,3.94625229,2534.1,2533.0,3.94788787]
[1747440146400,10.3,2534.0,2533.0,3.94788787]